[Event "57th Biel Festival ATO 2024"]
[Site "Biel"]
[Date "2024.07.24"]
[Round "8.25"]
[White "Paholok, Igor"]
[Black "Svendsen, Hannelore"]
[Result "1-0"]
[ECO "B12"]
[WhiteElo "1801"]
[BlackElo "1753"]
[Annotator "NA RC"]
[PlyCount "93"]
[EventDate "2024.07.03"]
[EventType "swiss"]
[EventCountry "SUI"]
[SourceTitle "playchess.com"]
[Source "ChessBase"]
[SourceQuality "1"]
[TimeControl "40/5400+30:1800+30"]

1. e4 {[%emt 0:08:22]} c6 {[%emt 0:00:24]} 2. d4 {[%emt 0:00:13]} d5 {[%emt 0:00:15]} 3. f3 {[%emt 0:00:08]} e6 {[%emt 0:00:34]} 4. e5 {[%emt 0:03:36]} Nd7 {[%emt 0:01:16]} 5. Be2 {[%emt 0:01:49]} c5 {[%emt 0:02:55]} 6. c3 {[%emt 0:00:43]} Qb6 {[%emt 0:08:21]} 7. f4 {[%emt 0:02:06]} cxd4 {[%emt 0:01:57]} 8. cxd4 {[%emt 0:00:14]} Bb4+ {[%emt 0:03:15]} 9. Nc3 {[%emt 0:03:21]} Ne7 {[%emt 0:00:43]} 10. Nf3 {[%emt 0:00:47]} Qc7 {[%emt 0:06:35]} 11. Bd2 {[%emt 0:02:51]} Bxc3 {[%emt 0:03:21]} 12. Bxc3 {[%emt 0:00:26]} Nf5 {[%emt 0:04:43]} 13. Kf2 {[%emt 0:06:30]} Qd8 {[%emt 0:03:50]} 14. h4 {[%emt 0:03:07]} h5 {[%emt 0:03:53]} 15. Ng5 {[%emt 0:01:21]} g6 {[%emt 0:01:25]} 16. Rh3 {[%emt 0:04:06]} a5 {[%emt 0:04:52]} 17. Qh1 {[%emt 0:00:34]} b6 {[%emt 0:01:29]} 18. g4 {[%emt 0:00:47]} Ng7 {[%emt 0:00:45]} 19. gxh5 {[%emt 0:09:41]} Nxh5 {[%emt 0:02:12]} 20. Ke3 {[%emt 0:02:17]} Ba6 {[%emt 0:03:20]} 21. Bxa6 {[%emt 0:02:44]} Rxa6 {[%emt 0:00:34]} 22. Qf1 {[%emt 0:00:23]} Qc8 {[%emt 0:04:26]} 23. Qd3 {[%emt 0:02:00]} Qc4 {[%emt 0:02:40]} 24. Qxc4 {[%emt 0:00:57]} dxc4 {[%emt 0:00:10]} 25. Ne4 {[%emt 0:00:31]} Ke7 {[%emt 0:05:42]} 26. Nd6 {[%emt 0:00:29]} Ng7 {[%emt 0:00:33]} 27. Nxc4 {[%emt 0:08:17]} Nf5+ {[%emt 0:02:06]} 28. Kd3 {[%emt 0:01:00]} Rh5 {[%emt 0:06:23]} 29. Rah1 {[%emt 0:01:53]} Ra8 {[%emt 0:00:23]} 30. Ne3 {[%emt 0:04:07]} Nxe3 {[%emt 0:12:35]} 31. Kxe3 {[%emt 0:02:59]} b5 {[%emt 0:00:54]} 32. Rc1 {[%emt 0:00:35]} Nb6 {[%emt 0:01:54]} 33. Ke4 {[%emt 0:03:30]} Nd5 {[%emt 0:03:54]} 34. Be1 {[%emt 0:01:46]} Rf5 {[%emt 0:01:13]} 35. Bg3 {[%emt 0:03:31]} Kd7 {[%emt 0:00:55]} 36. Rh2 {[%emt 0:01:22]} Rc8 {[%emt 0:02:04]} 37. Rxc8 {[%emt 0:01:13]} Kxc8 {[%emt 0:00:02]} 38. Rc2+ {[%emt 0:00:46]} Kb7 {[%emt 0:00:21]} 39. Rc5 {[%emt 0:02:21]} Kb6 {[%emt 0:00:35]} 40. Rc8 {[%emt 0:03:37]} Kb7 {[%emt 0:01:50]} 41. Rd8 {[%emt 0:31:03]} b4 {[%emt 0:31:32]} 42. Rxd5 {[%emt 0:10:07]} exd5+ {[%emt 0:01:50]} 43. Kxd5 {[%emt 0:00:15]} Rh5 {[%emt 0:00:00]} 44. Kd6 {[%emt 0:00:00]} a4 {[%emt 0:00:00]} 45. d5 {[%emt 0:00:00]} Kc8 {[%emt 0:00:00]} 46. Ke7 {[%emt 0:00:00]} Rf5 {[%emt 0:00:00]} 47. d6 {[%emt 0:00:00]} 1-0

[Event "57th Biel Festival ATO 2024"]
[Site "Biel"]
[Date "2024.07.24"]
[Round "8.27"]
[White "Richard, Jean-Paul"]
[Black "Bachmann Daniel"]
[Result "0-1"]
[ECO "C00"]
[WhiteElo "1796"]
[BlackElo "1713"]
[Annotator "NA RC"]
[PlyCount "104"]
[EventDate "2024.07.03"]
[EventType "swiss"]
[EventCountry "SUI"]
[SourceTitle "playchess.com"]
[Source "ChessBase"]
[SourceQuality "1"]
[TimeControl "40/5400+30:1800+30"]

1. e4 {[%emt 0:00:20]} e6 {[%emt 0:27:28]} 2. Nf3 {[%emt 0:00:59]} d5 {[%emt 0:00:42]} 3. e5 {[%emt 0:00:13]} c5 {[%emt 0:00:15]} 4. b4 {[%emt 0:00:12]} d4 {[%emt 0:02:36]} 5. bxc5 {[%emt 0:01:39]} Bxc5 {[%emt 0:00:02]} 6. Bd3 {[%emt 0:08:28]} Bd7 {[%emt 0:01:12]} 7. Be4 {[%emt 0:01:25]} Bc6 {[%emt 0:00:01]} 8. Qe2 {[%emt 0:00:37]} f5 {[%emt 0:08:16]} 9. exf6 {[%emt 0:01:41]} Qxf6 {[%emt 0:00:41]} 10. d3 {[%emt 0:00:55]} h6 {[%emt 0:02:16]} 11. O-O {[%emt 0:02:19]} Kf7 {[%emt 0:08:37]} 12. Ba3 {[%emt 0:04:25]} Bxa3 {[%emt 0:04:54]} 13. Nxa3 {[%emt 0:00:03]} Ne7 {[%emt 0:00:53]} 14. Nc4 {[%emt 0:01:43]} Rd8 {[%emt 0:02:05]} 15. Nfe5+ {[%emt 0:13:36]} Kg8 {[%emt 0:00:01]} 16. Nxc6 {[%emt 0:02:15]} Nbxc6 {[%emt 0:00:09]} 17. Rab1 {[%emt 0:01:22]} Rab8 {[%emt 0:01:42]} 18. Bxc6 {[%emt 0:17:33]} Nxc6 {[%emt 0:01:11]} 19. Rfe1 {[%emt 0:03:37]} b5 {[%emt 0:07:18]} 20. Ne5 {[%emt 0:05:11]} Rd6 {[%emt 0:04:58]} 21. Qe4 {[%emt 0:01:40]} Nxe5 {[%emt 0:00:49]} 22. Qxe5 {[%emt 0:00:08]} Qxe5 {[%emt 0:00:19]} 23. Rxe5 {[%emt 0:00:08]} a6 {[%emt 0:03:19]} 24. Rc5 {[%emt 0:01:07]} Rbb6 {[%emt 0:00:36]} 25. Re1 {[%emt 0:05:26]} Rbc6 {[%emt 0:00:56]} 26. Ree5 {[%emt 0:00:29]} Kf7 {[%emt 0:01:55]} 27. Kf1 {[%emt 0:01:17]} Ke7 {[%emt 0:00:01]} 28. Ke2 {[%emt 0:00:44]} Kd7 {[%emt 0:00:02]} 29. Kf3 {[%emt 0:03:43]} Kc7 {[%emt 0:00:13]} 30. Ke4 {[%emt 0:01:54]} Kb6 {[%emt 0:01:22]} 31. Rxc6+ {[%emt 0:00:37]} Rxc6 {[%emt 0:00:12]} 32. Kxd4 {[%emt 0:00:23]} Rxc2 {[%emt 0:00:16]} 33. Rxe6+ {[%emt 0:00:25]} Ka5 {[%emt 0:00:06]} 34. Rg6 {[%emt 0:05:53]} Rxa2 {[%emt 0:06:43]} 35. f4 {[%emt 0:00:20]} b4 {[%emt 0:00:10]} 36. Kc4 {[%emt 0:00:37]} Rc2+ {[%emt 0:00:02]} 37. Kb3 {[%emt 0:00:38]} Rc3+ {[%emt 0:01:50]} 38. Kb2 {[%emt 0:00:14]} Rc7 {[%emt 0:00:41]} 39. Rd6 {[%emt 0:04:04]} Kb5 {[%emt 0:00:30]} 40. Kb3 {[%emt 0:06:35]} a5 {[%emt 0:01:44]} 41. Rd5+ {[%emt 0:30:27]} Rc5 {[%emt 0:30:01]} 42. Rd7 {[%emt 0:00:38]} a4+ {[%emt 0:00:17]} 43. Ka2 {[%emt 0:00:37]} Rc2+ {[%emt 0:02:04]} 44. Kb1 {[%emt 0:00:44]} b3 {[%emt 0:00:44]} 45. Rxg7 {[%emt 0:00:19]} Kb4 {[%emt 0:01:25]} 46. f5 {[%emt 0:02:13]} Ka3 {[%emt 0:00:34]} 47. f6 {[%emt 0:00:25]} Rf2 {[%emt 0:02:07]} 48. Kc1 {[%emt 0:02:15]} b2+ {[%emt 0:00:45]} 49. Kb1 {[%emt 0:01:11]} Rf1+ {[%emt 0:00:04]} 50. Kc2 {[%emt 0:00:09]} b1=Q+ {[%emt 0:00:06]} 51. Kc3 {[%emt 0:01:16]} Qb4+ {[%emt 0:00:34]} 52. Kc2 {[%emt 0:00:14]} Rf2+ {[%emt 0:00:21]} 0-1

[Event "57th Biel Festival ATO 2024"]
[Site "Biel"]
[Date "2024.07.24"]
[Round "8.28"]
[White "Sushrutha, Reddy"]
[Black "Kessler, Meinrad"]
[Result "1/2-1/2"]
[ECO "B88"]
[WhiteElo "1649"]
[BlackElo "1874"]
[Annotator "NA RC"]
[PlyCount "91"]
[EventDate "2024.07.03"]
[EventType "swiss"]
[EventCountry "SUI"]
[SourceTitle "playchess.com"]
[Source "ChessBase"]
[SourceQuality "1"]
[TimeControl "40/5400+30:1800+30"]

1. e4 {[%emt 0:00:05]} c5 {[%emt 0:00:08]} 2. Nf3 {[%emt 0:00:04]} Nc6 {[%emt 0:00:11]} 3. d4 {[%emt 0:00:02]} cxd4 {[%emt 0:00:16]} 4. Nxd4 {[%emt 0:00:03]} d6 {[%emt 0:00:23]} 5. Nc3 {[%emt 0:00:05]} a6 {[%emt 0:00:54]} 6. Bc4 {[%emt 0:00:18]} e6 {[%emt 0:00:29]} 7. Bb3 {[%emt 0:00:15]} Nf6 {[%emt 0:02:41]} 8. Be3 {[%emt 0:00:34]} Be7 {[%emt 0:04:12]} 9. f3 {[%emt 0:00:03]} O-O {[%emt 0:02:03]} 10. Qd2 {[%emt 0:00:07]} Bd7 {[%emt 0:02:00]} 11. O-O-O {[%emt 0:00:08]} b5 {[%emt 0:07:29]} 12. h4 {[%emt 0:00:13]} Na5 {[%emt 0:01:57]} 13. h5 {[%emt 0:00:35]} e5 {[%emt 0:08:47]} 14. Nf5 {[%emt 0:01:22]} Nxb3+ {[%emt 0:00:51]} 15. axb3 {[%emt 0:00:06]} Bxf5 {[%emt 0:00:24]} 16. exf5 {[%emt 0:00:11]} h6 {[%emt 0:06:48]} 17. g4 {[%emt 0:00:13]} b4 {[%emt 0:05:50]} 18. Ne4 {[%emt 0:00:14]} Nxe4 {[%emt 0:23:09]} 19. fxe4 {[%emt 0:00:05]} f6 {[%emt 0:00:59]} 20. Qxb4 {[%emt 0:01:03]} d5 {[%emt 0:00:31]} 21. Bc5 {[%emt 0:00:31]} Bxc5 {[%emt 0:04:51]} 22. Qxc5 {[%emt 0:00:03]} d4 {[%emt 0:02:06]} 23. c4 {[%emt 0:02:48]} Qb8 {[%emt 0:02:30]} 24. Kc2 {[%emt 0:01:04]} Rd8 {[%emt 0:00:24]} 25. Rh3 {[%emt 0:00:37]} Qb7 {[%emt 0:00:35]} 26. Re1 {[%emt 0:02:43]} Rab8 {[%emt 0:02:27]} 27. Rd3 {[%emt 0:01:07]} Rd7 {[%emt 0:05:40]} 28. Kd2 {[%emt 0:02:25]} Rc8 {[%emt 0:01:14]} 29. Qa5 {[%emt 0:01:25]} Qc6 {[%emt 0:02:36]} 30. Rh3 {[%emt 0:02:33]} Qb7 {[%emt 0:01:20]} 31. Rd3 {[%emt 0:00:18]} Qc6 {[%emt 0:00:34]} 32. Rh3 {[%emt 0:00:20]} Qb7 {[%emt 0:00:17]} 33. Rd3 {[%emt 0:00:21]} Qc6 {[%emt 0:00:18]} 34. Kc2 {[%emt 0:00:40]} Rb8 {[%emt 0:00:38]} 35. Kb1 {[%emt 0:00:54]} Qc8 {[%emt 0:02:33]} 36. Qd2 {[%emt 0:01:06]} Rdb7 {[%emt 0:00:22]} 37. Qc2 {[%emt 0:00:22]} Qc5 {[%emt 0:00:20]} 38. Rh1 {[%emt 0:00:57]} a5 {[%emt 0:02:04]} 39. Rhh3 {[%emt 0:00:54]} a4 {[%emt 0:02:38]} 40. Kc1 {[%emt 0:00:41]} a3 {[%emt 0:00:27]} 41. bxa3 {[%emt 0:30:43]} Qxa3+ {[%emt 0:30:11]} 42. Qb2 {[%emt 0:00:17]} Qb4 {[%emt 0:04:28]} 43. Rd2 {[%emt 0:02:24]} Ra8 {[%emt 0:00:59]} 44. Rhd3 {[%emt 0:03:01]} Rba7 {[%emt 0:00:50]} 45. Kb1 {[%emt 0:00:59]} Ra3 {[%emt 0:00:38]} 46. Rd1 {[%emt 0:02:17]} 1/2-1/2

[Event "57th Biel Festival ATO 2024"]
[Site "Biel"]
[Date "2024.07.24"]
[Round "8.29"]
[White "Christoffersen, Odd"]
[Black "Coletta, Julien"]
[Result "1-0"]
[ECO "C27"]
[WhiteElo "1676"]
[BlackElo "1778"]
[Annotator "NA RC"]
[PlyCount "125"]
[EventDate "2024.07.03"]
[EventType "swiss"]
[EventCountry "SUI"]
[SourceTitle "playchess.com"]
[Source "ChessBase"]
[SourceQuality "1"]
[TimeControl "40/5400+30:1800+30"]

1. e4 {[%emt 0:00:15]} e5 {[%emt 0:00:07]} 2. Nc3 {[%emt 0:00:21]} Nf6 {[%emt 0:00:05]} 3. Bc4 {[%emt 0:00:31]} Nxe4 {[%emt 0:00:15]} 4. Qh5 {[%emt 0:00:20]} Nd6 {[%emt 0:02:44]} 5. Bb3 {[%emt 0:01:46]} Be7 {[%emt 0:04:32]} 6. Qxe5 {[%emt 0:00:52]} O-O {[%emt 0:00:27]} 7. Nge2 {[%emt 0:00:39]} Nc6 {[%emt 0:02:59]} 8. Qh5 {[%emt 0:02:08]} g6 {[%emt 0:07:39]} 9. Qf3 {[%emt 0:02:38]} Nf5 {[%emt 0:04:01]} 10. O-O {[%emt 0:05:09]} Ncd4 {[%emt 0:11:33]} 11. Nxd4 {[%emt 0:02:49]} Nxd4 {[%emt 0:00:05]} 12. Qd5 {[%emt 0:01:57]} Nxb3 {[%emt 0:00:11]} 13. axb3 {[%emt 0:01:18]} c6 {[%emt 0:01:37]} 14. Qf3 {[%emt 0:01:17]} d5 {[%emt 0:01:45]} 15. d3 {[%emt 0:01:01]} Bg5 {[%emt 0:07:25]} 16. Re1 {[%emt 0:02:45]} Bxc1 {[%emt 0:00:24]} 17. Raxc1 {[%emt 0:00:21]} Qg5 {[%emt 0:02:57]} 18. Ra1 {[%emt 0:02:07]} Be6 {[%emt 0:08:38]} 19. Qe3 {[%emt 0:02:56]} Qxe3 {[%emt 0:00:11]} 20. fxe3 {[%emt 0:00:31]} b6 {[%emt 0:01:59]} 21. Ra6 {[%emt 0:04:43]} Bc8 {[%emt 0:04:43]} 22. Raa1 {[%emt 0:01:15]} Bb7 {[%emt 0:06:51]} 23. Ra4 {[%emt 0:04:15]} b5 {[%emt 0:06:36]} 24. Rf4 {[%emt 0:01:14]} a6 {[%emt 0:00:36]} 25. d4 {[%emt 0:02:05]} Rfe8 {[%emt 0:03:00]} 26. Na2 {[%emt 0:03:20]} Bc8 {[%emt 0:03:51]} 27. g4 {[%emt 0:03:33]} Re4 {[%emt 0:03:36]} 28. h3 {[%emt 0:01:53]} Bd7 {[%emt 0:02:07]} 29. Nc1 {[%emt 0:03:56]} Rae8 {[%emt 0:01:00]} 30. Rxe4 {[%emt 0:00:34]} dxe4 {[%emt 0:00:19]} 31. Kg2 {[%emt 0:01:38]} Be6 {[%emt 0:04:03]} 32. Ne2 {[%emt 0:00:29]} g5 {[%emt 0:01:11]} 33. b4 {[%emt 0:02:34]} f5 {[%emt 0:01:33]} 34. gxf5 {[%emt 0:01:12]} Bxf5 {[%emt 0:00:11]} 35. Rf1 {[%emt 0:00:39]} Rf8 {[%emt 0:02:44]} 36. Ra1 {[%emt 0:03:41]} Bc8 {[%emt 0:01:39]} 37. Re1 {[%emt 0:02:37]} g4 {[%emt 0:03:55]} 38. hxg4 {[%emt 0:01:32]} Bxg4 {[%emt 0:00:08]} 39. Nf4 {[%emt 0:00:30]} Bf3+ {[%emt 0:00:27]} 40. Kf2 {[%emt 0:00:31]} h5 {[%emt 0:00:39]} 41. Ra1 {[%emt 0:32:25]} Kf7 {[%emt 0:09:40]} 42. Rxa6 {[%emt 0:00:00]} Rh8 {[%emt 0:01:41]} 43. Rxc6 {[%emt 0:00:00]} h4 {[%emt 0:00:27]} 44. Kg1 {[%emt 0:00:00]} Ra8 {[%emt 0:04:03]} 45. Rh6 {[%emt 0:00:00]} Ra2 {[%emt 0:00:55]} 46. Rxh4 {[%emt 0:00:00]} Rxb2 {[%emt 0:00:07]} 47. Rh7+ {[%emt 0:00:00]} Kg8 {[%emt 0:02:58]} 48. Rb7 {[%emt 0:00:00]} Rxb4 {[%emt 0:00:41]} 49. d5 {[%emt 0:00:00]} Kf8 {[%emt 0:00:32]} 50. d6 {[%emt 0:00:00]} Rb1+ {[%emt 0:00:19]} 51. Kf2 {[%emt 0:00:00]} Rd1 {[%emt 0:00:25]} 52. Ne6+ {[%emt 0:00:00]} Ke8 {[%emt 0:00:33]} 53. Nd4 {[%emt 0:00:00]} Rd2+ {[%emt 0:03:26]} 54. Kg3 {[%emt 0:00:00]} Rg2+ {[%emt 0:01:45]} 55. Kh3 {[%emt 0:00:00]} Rg6 {[%emt 0:02:07]} 56. Nxb5 {[%emt 0:00:00]} Kd8 {[%emt 0:01:13]} 57. c4 {[%emt 0:00:00]} Rg5 {[%emt 0:01:15]} 58. Nd4 {[%emt 0:00:00]} Rh5+ {[%emt 0:02:57]} 59. Kg3 {[%emt 0:00:00]} Rg5+ {[%emt 0:00:55]} 60. Kf4 {[%emt 0:00:00]} Rg6 {[%emt 0:00:39]} 61. c5 {[%emt 0:00:12]} Rh6 {[%emt 0:01:10]} 62. Nxf3 {[%emt 0:00:47]} exf3 {[%emt 0:00:15]} 63. Kxf3 {[%emt 0:00:11]} 1-0

[Event "57th Biel Festival ATO 2024"]
[Site "Biel"]
[Date "2024.07.24"]
[Round "8.30"]
[White "Shin, Seungmin"]
[Black "Rossi, Jonas"]
[Result "0-1"]
[ECO "C02"]
[WhiteElo "1493"]
[BlackElo "1796"]
[Annotator "NA RC"]
[PlyCount "50"]
[EventDate "2024.07.03"]
[EventType "swiss"]
[EventCountry "SUI"]
[SourceTitle "playchess.com"]
[Source "ChessBase"]
[SourceQuality "1"]
[TimeControl "40/5400+30:1800+30"]

1. e4 {[%emt 0:00:43]} e6 {[%emt 0:00:42]} 2. d4 {[%emt 0:00:07]} d5 {[%emt 0:00:07]} 3. e5 {[%emt 0:00:04]} c5 {[%emt 0:00:06]} 4. c3 {[%emt 0:00:04]} Nc6 {[%emt 0:00:05]} 5. Nf3 {[%emt 0:00:08]} Qb6 {[%emt 0:00:07]} 6. a3 {[%emt 0:00:15]} Nh6 {[%emt 0:00:12]} 7. b4 {[%emt 0:00:33]} cxd4 {[%emt 0:00:07]} 8. cxd4 {[%emt 0:00:07]} Bd7 {[%emt 0:00:08]} 9. Bxh6 {[%emt 0:00:24]} gxh6 {[%emt 0:00:06]} 10. Nc3 {[%emt 0:00:16]} Nxb4 {[%emt 0:03:59]} 11. axb4 {[%emt 0:01:11]} Bxb4 {[%emt 0:00:12]} 12. Qb3 {[%emt 0:03:35]} Rc8 {[%emt 0:01:05]} 13. Rc1 {[%emt 0:00:14]} Qa5 {[%emt 0:00:42]} 14. Kd2 {[%emt 0:00:29]} O-O {[%emt 0:00:38]} 15. Bd3 {[%emt 0:01:27]} Ba4 {[%emt 0:01:53]} 16. Qb2 {[%emt 0:00:50]} Rc7 {[%emt 0:01:11]} 17. Bxh7+ {[%emt 0:03:36]} Kxh7 {[%emt 0:02:57]} 18. Kd3 {[%emt 0:00:28]} Ba3 {[%emt 0:10:36]} 19. Qa1 {[%emt 0:02:24]} Bxc1 {[%emt 0:00:26]} 20. Rxc1 {[%emt 0:00:13]} Rfc8 {[%emt 0:01:33]} 21. h3 {[%emt 0:03:51]} Bc2+ {[%emt 0:03:21]} 22. Kxc2 {[%emt 0:00:17]} Rxc3+ {[%emt 0:01:34]} 23. Kd1 {[%emt 0:00:13]} Rxc1+ {[%emt 0:00:15]} 24. Qxc1 {[%emt 0:00:27]} Rxc1+ {[%emt 0:00:13]} 25. Kxc1 {[%emt 0:00:04]} Qc3+ {[%emt 0:00:21]} 0-1

[Event "57th Biel Festival ATO 2024"]
[Site "Biel"]
[Date "2024.07.24"]
[Round "8.31"]
[White "Van Bogaert, Olivier"]
[Black "Lesniak, Julien"]
[Result "1/2-1/2"]
[ECO "A29"]
[WhiteElo "1815"]
[BlackElo "1728"]
[Annotator "NA RC"]
[PlyCount "22"]
[EventDate "2024.07.03"]
[EventType "swiss"]
[EventCountry "SUI"]
[SourceTitle "playchess.com"]
[Source "ChessBase"]
[SourceQuality "1"]
[TimeControl "40/5400+30:1800+30"]

1. c4 {[%emt 0:00:19]} e5 {[%emt 0:00:30]} 2. g3 {[%emt 0:00:18]} Nf6 {[%emt 0:00:54]} 3. Bg2 {[%emt 0:00:28]} Bc5 {[%emt 0:01:02]} 4. Nc3 {[%emt 0:00:31]} Nc6 {[%emt 0:01:36]} 5. Nf3 {[%emt 0:00:17]} d6 {[%emt 0:00:47]} 6. O-O {[%emt 0:00:27]} O-O {[%emt 0:01:02]} 7. e3 {[%emt 0:01:36]} Be6 {[%emt 0:13:34]} 8. d3 {[%emt 0:00:42]} Qc8 {[%emt 0:02:16]} 9. d4 {[%emt 0:18:46]} Bxc4 {[%emt 0:00:31]} 10. dxc5 {[%emt 0:00:15]} Bxf1 {[%emt 0:00:42]} 11. Kxf1 {[%emt 0:03:25]} dxc5 {[%emt 0:01:40]} 1/2-1/2

[Event "57th Biel Festival ATO 2024"]
[Site "Biel"]
[Date "2024.07.24"]
[Round "8.33"]
[White "Noel, Lucien"]
[Black "Primbetova, Raikhan"]
[Result "1/2-1/2"]
[ECO "A06"]
[WhiteElo "1714"]
[BlackElo "1534"]
[Annotator "NA RC"]
[PlyCount "48"]
[EventDate "2024.07.03"]
[EventType "swiss"]
[EventCountry "SUI"]
[SourceTitle "playchess.com"]
[Source "ChessBase"]
[SourceQuality "1"]
[TimeControl "40/5400+30:1800+30"]

1. b3 {[%emt 0:00:13]} d5 {[%emt 0:00:57]} 2. Nf3 {[%emt 0:00:09]} Nf6 {[%emt 0:00:15]} 3. Bb2 {[%emt 0:00:08]} c5 {[%emt 0:00:15]} 4. e4 {[%emt 0:01:03]} dxe4 {[%emt 0:01:00]} 5. Ne5 {[%emt 0:00:14]} Nbd7 {[%emt 0:03:43]} 6. Bb5 {[%emt 0:01:03]} a6 {[%emt 0:00:49]} 7. Bxd7+ {[%emt 0:00:15]} Bxd7 {[%emt 0:00:14]} 8. Qe2 {[%emt 0:00:15]} Bf5 {[%emt 0:14:13]} 9. g4 {[%emt 0:02:19]} Bd7 {[%emt 0:10:03]} 10. Nc3 {[%emt 0:04:14]} Qc7 {[%emt 0:11:13]} 11. Nxe4 {[%emt 0:04:14]} Nxe4 {[%emt 0:02:25]} 12. Qxe4 {[%emt 0:00:09]} Bc6 {[%emt 0:05:10]} 13. Nxc6 {[%emt 0:02:01]} Qxc6 {[%emt 0:00:05]} 14. Qxc6+ {[%emt 0:00:11]} bxc6 {[%emt 0:00:03]} 15. c4 {[%emt 0:00:26]} h5 {[%emt 0:02:16]} 16. g5 {[%emt 0:01:32]} Rg8 {[%emt 0:04:40]} 17. O-O-O {[%emt 0:06:15]} e6 {[%emt 0:04:55]} 18. Be5 {[%emt 0:06:17]} O-O-O {[%emt 0:02:31]} 19. f4 {[%emt 0:02:30]} Bd6 {[%emt 0:00:47]} 20. d4 {[%emt 0:02:19]} cxd4 {[%emt 0:04:07]} 21. Rxd4 {[%emt 0:01:11]} Bxe5 {[%emt 0:03:58]} 22. Rxd8+ {[%emt 0:00:12]} Rxd8 {[%emt 0:06:32]} 23. fxe5 {[%emt 0:00:41]} c5 {[%emt 0:06:41]} 24. Rf1 {[%emt 0:02:43]} Rd7 {[%emt 0:00:13]} 1/2-1/2

[Event "57th Biel Festival ATO 2024"]
[Site "Biel"]
[Date "2024.07.24"]
[Round "8.34"]
[White "Kim, Sarang"]
[Black "Kim, Danha"]
[Result "1-0"]
[ECO "C10"]
[WhiteElo "1704"]
[BlackElo "1491"]
[Annotator "NA RC"]
[PlyCount "42"]
[EventDate "2024.07.03"]
[EventType "swiss"]
[EventCountry "SUI"]
[SourceTitle "playchess.com"]
[Source "ChessBase"]
[SourceQuality "1"]
[TimeControl "40/5400+30:1800+30"]

1. e4 {[%emt 0:00:04]} e6 {[%emt 0:00:22]} 2. d4 {[%emt 0:00:01]} d5 {[%emt 0:00:22]} 3. Nd2 {[%emt 0:00:04]} dxe4 {[%emt 0:00:38]} 4. Nxe4 {[%emt 0:00:07]} Nc6 {[%emt 0:00:26]} 5. Nf3 {[%emt 0:00:05]} Nf6 {[%emt 0:00:56]} 6. Nxf6+ {[%emt 0:00:05]} Qxf6 {[%emt 0:01:54]} 7. Bd3 {[%emt 0:00:06]} Qd8 {[%emt 0:00:49]} 8. O-O {[%emt 0:00:11]} Bd6 {[%emt 0:00:52]} 9. Re1 {[%emt 0:00:47]} O-O {[%emt 0:01:11]} 10. Ng5 {[%emt 0:02:55]} g6 {[%emt 0:02:30]} 11. c3 {[%emt 0:01:25]} b6 {[%emt 0:04:20]} 12. Be4 {[%emt 0:01:13]} Bb7 {[%emt 0:02:32]} 13. Qf3 {[%emt 0:02:51]} Qd7 {[%emt 0:04:11]} 14. Qh3 {[%emt 0:05:47]} f5 {[%emt 0:03:31]} 15. Bc2 {[%emt 0:05:57]} Rae8 {[%emt 0:05:04]} 16. Bb3 {[%emt 0:14:13]} Rf6 {[%emt 0:04:29]} 17. d5 {[%emt 0:00:36]} Nd8 {[%emt 0:04:43]} 18. Ba4 {[%emt 0:09:13]} Qxa4 {[%emt 0:09:11]} 19. Qxh7+ {[%emt 0:00:10]} Kf8 {[%emt 0:00:07]} 20. Nxe6+ {[%emt 0:00:18]} Nxe6 {[%emt 0:00:29]} 21. Bh6+ {[%emt 0:00:04]} Ng7 {[%emt 0:00:15]} 1-0

[Event "57th Biel Festival ATO 2024"]
[Site "Biel"]
[Date "2024.07.24"]
[Round "8.36"]
[White "Hofer, Friedrich"]
[Black "Moon, Sunwoong"]
[Result "1-0"]
[ECO "C01"]
[WhiteElo "1798"]
[BlackElo "1661"]
[Annotator "NA"]
[PlyCount "121"]
[EventDate "2024.07.03"]
[EventType "swiss"]
[EventCountry "SUI"]
[SourceTitle "playchess.com"]
[Source "ChessBase"]
[SourceQuality "1"]
[TimeControl "40/5400+30:1800+30"]

1. e4 {[%emt 0:00:07]} e6 {[%emt 0:00:06]} 2. d4 {[%emt 0:00:22]} d5 {[%emt 0:00:07]} 3. exd5 {[%emt 0:00:29]} exd5 {[%emt 0:00:08]} 4. Nf3 {[%emt 0:00:07]} Nf6 {[%emt 0:00:11]} 5. Bd3 {[%emt 0:00:08]} Bd6 {[%emt 0:00:06]} 6. Qe2+ {[%emt 0:00:14]} Be7 {[%emt 0:01:15]} 7. O-O {[%emt 0:00:56]} O-O {[%emt 0:00:04]} 8. c3 {[%emt 0:02:53]} Bd6 {[%emt 0:00:15]} 9. Bg5 {[%emt 0:00:17]} c6 {[%emt 0:00:12]} 10. Qc2 {[%emt 0:00:37]} h6 {[%emt 0:00:15]} 11. Bh4 {[%emt 0:02:01]} Nbd7 {[%emt 0:01:22]} 12. Nbd2 {[%emt 0:00:27]} Qc7 {[%emt 0:00:55]} 13. Bg3 {[%emt 0:00:50]} Bxg3 {[%emt 0:00:53]} 14. hxg3 {[%emt 0:00:08]} b5 {[%emt 0:00:30]} 15. Rfe1 {[%emt 0:01:32]} Nb6 {[%emt 0:01:42]} 16. b3 {[%emt 0:00:29]} a5 {[%emt 0:01:55]} 17. Ne5 {[%emt 0:14:40]} a4 {[%emt 0:02:15]} 18. Rac1 {[%emt 0:07:59]} Ng4 {[%emt 0:14:09]} 19. Ndf3 {[%emt 0:02:12]} Nxe5 {[%emt 0:01:35]} 20. Nxe5 {[%emt 0:01:25]} Nd7 {[%emt 0:00:56]} 21. b4 {[%emt 0:06:07]} Nxe5 {[%emt 0:01:39]} 22. Rxe5 {[%emt 0:00:09]} f6 {[%emt 0:03:41]} 23. Re3 {[%emt 0:01:32]} f5 {[%emt 0:00:58]} 24. Rce1 {[%emt 0:00:37]} f4 {[%emt 0:01:20]} 25. Bh7+ {[%emt 0:00:32]} Kh8 {[%emt 0:00:13]} 26. gxf4 {[%emt 0:00:15]} Bg4 {[%emt 0:02:10]} 27. f3 {[%emt 0:03:31]} Bh5 {[%emt 0:01:24]} 28. Re5 {[%emt 0:04:12]} g5 {[%emt 0:11:21]} 29. Re7 {[%emt 0:05:55]} Qxf4 {[%emt 0:00:22]} 30. Bg8 {[%emt 0:00:19]} Qf5 {[%emt 0:01:20]} 31. Qxf5 {[%emt 0:01:08]} Rxf5 {[%emt 0:00:08]} 32. Be6 {[%emt 0:02:09]} Rf6 {[%emt 0:01:46]} 33. a3 {[%emt 0:00:50]} Re8 {[%emt 0:01:14]} 34. Rxe8+ {[%emt 0:00:36]} Bxe8 {[%emt 0:00:07]} 35. Bxd5 {[%emt 0:00:36]} Bg6 {[%emt 0:00:52]} 36. Re6 {[%emt 0:00:39]} Rxe6 {[%emt 0:01:09]} 37. Bxe6 {[%emt 0:00:07]} Be8 {[%emt 0:00:09]} 38. Kf2 {[%emt 0:00:18]} Kg7 {[%emt 0:01:14]} 39. Ke3 {[%emt 0:00:44]} Kf6 {[%emt 0:00:19]} 40. Bc8 {[%emt 0:01:46]} h5 {[%emt 0:01:26]} 41. g3 {[%emt 0:30:39]} Bf7 {[%emt 0:31:18]} 42. Bd7 {[%emt 0:01:22]} Bd5 {[%emt 0:00:11]} 43. Be8 {[%emt 0:00:15]} h4 {[%emt 0:02:02]} 44. gxh4 {[%emt 0:00:07]} gxh4 {[%emt 0:00:08]} 45. Bd7 {[%emt 0:00:06]} Kg5 {[%emt 0:01:15]} 46. Bh3 {[%emt 0:00:14]} Bb3 {[%emt 0:01:21]} 47. Ke4 {[%emt 0:00:26]} Bd5+ {[%emt 0:00:21]} 48. Ke3 {[%emt 0:00:51]} Bb3 {[%emt 0:00:18]} 49. f4+ {[%emt 0:00:20]} Kf6 {[%emt 0:00:24]} 50. f5 {[%emt 0:03:55]} Bc2 {[%emt 0:03:33]} 51. Kf4 {[%emt 0:00:11]} Bd3 {[%emt 0:03:40]} 52. Bg2 {[%emt 0:04:14]} Bxf5 {[%emt 0:00:29]} 53. Bxc6 {[%emt 0:00:07]} h3 {[%emt 0:00:48]} 54. Kg3 {[%emt 0:00:36]} Bd3 {[%emt 0:00:45]} 55. Kxh3 {[%emt 0:00:21]} Ke6 {[%emt 0:00:33]} 56. Kg4 {[%emt 0:00:54]} Kd6 {[%emt 0:00:19]} 57. Bf3 {[%emt 0:01:03]} Bc4 {[%emt 0:01:45]} 58. Kf4 {[%emt 0:00:14]} Bf1 {[%emt 0:02:44]} 59. Ke3 {[%emt 0:00:20]} Bc4 {[%emt 0:00:17]} 60. Be2 {[%emt 0:00:16]} Kd5 {[%emt 0:00:18]} 61. Bd3 {[%emt 0:00:30]} 1-0